bitfinex/quotes_ETHUSD_20240827
["timestamp","ask_amount","ask_price","bid_price","bid_amount"]
[1724796702311,9.4837,2466.8,2465.9,3.55]
[1724796702312,0.10134165,2466.7,2465.9,3.55]
[1724796702534,0.10134165,2466.7,2465.6,0.55]
[1724796702814,4.05043,2468.9,2465.6,0.55]
[1724796702815,9.2361,2468.3,2465.7,35.0]
[1724796703029,9.30219632,2467.9,2465.8,0.55]
[1724796703176,9.2361,2467.5,2466.0,0.4029]
[1724796703377,0.06609632,2467.2,2466.0,0.4029]
[1724796703731,0.06609632,2467.0,2466.0,0.4029]
[1724796703885,0.06609632,2466.9,2466.0,0.4029]
[1724796704089,0.16745807,2466.9,2466.0,0.4029]
[1724796704286,0.10136175,2466.8,2466.1,0.4029]
[1724796704604,9.2361,2467.1,2466.2,0.55]
[1724796705114,0.10134566,2467.0,2466.2,0.55]
[1724796705318,9.2361,2467.1,2466.2,0.55]
[1724796705487,9.2361,2467.1,2466.3,0.4029]
[1724796705819,0.22177316,2469.0,2466.9,2.42396676]
[1724796705820,9.1332,2468.6,2466.9,2.42396676]
[1724796706132,9.1332,2470.2,2467.7,0.4029]
[1724796706276,0.06609632,2470.0,2467.9,0.4029]
[1724796706476,0.06609632,2470.0,2467.7,2.00723623]
[1724796706477,0.06609632,2470.0,2468.1,0.4029]
[1724796706730,0.06609632,2470.0,2468.3,2.47456948]
[1724796706882,9.1332,2470.2,2468.5,2.42048456]
[1724796707083,9.1332,2470.2,2468.7,2.44758845]
[1724796707277,9.1332,2470.2,2468.7,5.44758845]
[1724796707515,9.1332,2470.2,2469.1,0.4029]
[1724796707716,9.1332,2470.2,2469.3,0.4029]
[1724796708150,9.1332,2470.2,2469.5,0.4029]
[1724796708340,9.1332,2470.2,2468.6,3.0]
[1724796708341,9.1332,2470.2,2468.6,3.4029]
[1724796708556,9.1332,2470.2,2468.8,0.4029]
[1724796708727,9.1332,2470.2,2469.0,0.4029]
[1724796709227,9.1332,2470.2,2468.8,3.355]
[1724796709228,9.1332,2470.2,2469.2,0.4029]
[1724796709563,9.1332,2470.2,2469.3,0.9529]
[1724796709564,0.10121621,2470.1,2469.3,0.9529]
[1724796709764,0.06609632,2470.0,2468.5,2.7279522]
[1724796709946,0.91332,2470.1,2468.1,6.17591811]
[1724796710144,0.10122737,2470.1,2468.2,0.47706473]
[1724796710313,0.16732369,2470.1,2468.1,8.23423442]
[1724796710515,9.1332,2470.2,2468.3,6.12288948]
[1724796710722,9.1332,2470.2,2468.8,0.4029]
[1724796711161,0.10121801,2470.1,2469.0,0.4029]
[1724796711382,0.10121801,2470.1,2469.2,0.4029]
[1724796711579,9.1332,2470.2,2469.2,0.4029]
[1724796711747,0.10122475,2470.1,2469.2,0.4029]
[1724796711950,0.10122475,2470.1,2468.0,4.41072288]
[1724796711951,0.06609632,2470.0,2468.2,1.50898847]
[1724796712163,10.04652,2470.2,2468.2,1.50898847]
[1724796712164,9.1549,2469.7,2468.2,0.4029]
[1724796712372,0.06335827,2469.5,2467.8,0.4029]
[1724796712571,0.06335827,2469.3,2468.0,0.4029]
[1724796712893,0.10125544,2469.5,2466.3,9.0628]
[1724796712894,0.06335827,2469.0,2467.1,0.45217425]
[1724796713193,0.10128597,2468.9,2467.2,0.4029]
[1724796713985,0.1646357,2469.0,2467.4,0.4029]
[1724796714190,0.10126618,2469.0,2467.6,0.4029]
[1724796714341,0.10126548,2469.0,2467.6,0.4029]
[1724796714688,0.10126548,2469.0,2467.5,1.15527349]
[1724796714689,9.1549,2469.1,2467.8,0.4029]
[1724796714841,9.1549,2469.1,2468.0,0.4029]
[1724796715047,9.1549,2469.1,2468.0,0.84090759]
[1724796715381,0.06335827,2468.6,2465.6,2.03218836]
[1724796715563,0.06335827,2468.2,2465.2,0.6346335]
[1724796715740,9.2193578,2468.1,2465.3,0.96645335]
[1724796715940,0.06335827,2468.0,2465.3,0.96645335]
[1724796716138,0.06335827,2467.8,2465.4,0.16013166]
[1724796716344,0.06335827,2467.6,2465.5,0.4029]
[1724796716643,0.92827075,2467.8,2465.3,0.96645335]
[1724796716644,0.06335827,2467.4,2465.7,0.4029]
[1724796716838,0.10134425,2467.3,2465.7,0.73496449]
[1724796717042,0.92827075,2467.8,2465.9,0.4029]
[1724796717043,0.06335827,2467.6,2465.9,0.4029]
[1724796717284,0.77088609,2467.7,2465.5,35.0]
[1724796717285,9.6126,2467.3,2465.5,35.0]
[1724796717454,0.06335827,2467.1,2465.3,0.96645335]
[1724796717784,0.06335827,2466.9,2465.3,0.3192067]
[1724796717951,0.10137315,2466.8,2465.3,0.3192067]
[1724796718158,0.06335827,2467.1,2465.3,0.3192067]
[1724796718343,0.16471703,2467.0,2465.3,0.3192067]
[1724796718550,0.96126,2467.2,2465.3,0.3192067]
[1724796718551,0.10135917,2467.2,2465.4,2.0952852]
[1724796718778,9.6126,2467.3,2465.6,6.08794836]
[1724796718949,9.6126,2467.3,2465.7,6.516656]
[1724796719166,9.6126,2467.3,2465.7,0.3751242]
[1724796719352,9.6126,2467.3,2465.8,0.4029]
[1724796719549,0.10132882,2467.2,2466.0,0.4029]
[1724796719888,0.10132882,2467.2,2466.1,0.55]
[1724796720251,0.10132882,2467.2,2466.2,0.4029]
[1724796720489,9.6126,2467.3,2466.4,0.4029]
[1724796720658,9.6126,2467.3,2466.3,0.55]
[1724796720659,9.6126,2467.3,2466.6,0.4029]
[1724796721099,0.16469531,2467.2,2466.6,0.4029]
[1724796721477,0.10133704,2467.2,2466.6,0.4029]
[1724796721786,0.10133704,2467.2,2465.7,0.4029]
[1724796722175,0.10133704,2467.2,2465.9,0.4029]
[1724796722389,9.32956356,2467.1,2464.8,0.4029]
[1724796722687,0.04186356,2466.8,2465.0,0.4029]
[1724796722898,0.04186356,2466.7,2465.0,0.4029]
[1724796723101,0.04186356,2466.6,2465.0,0.4029]
[1724796723253,0.14324129,2466.6,2465.0,0.4029]
[1724796723453,9.2877,2466.9,2465.2,0.4029]
[1724796723454,0.10137767,2466.8,2465.2,0.4029]
[1724796723652,0.10136134,2466.7,2465.2,0.4029]
[1724796723873,0.1432249,2466.7,2465.2,0.4029]
[1724796724083,0.10136204,2466.8,2465.7,0.4029]
[1724796724265,0.10136347,2466.7,2465.7,0.4029]
[1724796724484,9.2877,2466.9,2465.3,0.4029]
[1724796724679,0.10136981,2466.8,2465.5,0.4029]
[1724796724906,2.00439718,2468.0,2465.5,0.4029]
[1724796724907,9.5783,2466.6,2465.5,0.4029]
[1724796725066,0.14324995,2466.5,2465.5,0.4029]
[1724796725250,0.14324995,2466.5,2463.8,39.6234]
[1724796725251,0.04186356,2466.4,2463.8,39.6234]
[1724796725454,0.04186356,2466.1,2464.3,0.4029]
[1724796725652,9.7887,2466.0,2464.3,0.4029]
[1724796725895,0.04186356,2465.6,2464.3,0.4029]
[1724796726064,9.7887,2465.4,2463.6,0.1219889]
[1724796726273,0.04186356,2465.2,2463.6,0.1219889]
[1724796726500,0.80175887,2466.1,2463.6,0.1219889]
[1724796726501,9.0217,2464.8,2463.6,0.1219889]
[1724796726666,0.04186356,2464.6,2463.6,0.1219889]
[1724796726870,9.0217,2464.4,2463.6,0.1219889]
[1724796727067,0.04186356,2464.2,2463.6,0.1219889]
[1724796727378,2.00439718,2465.3,2461.6,2.1441699]
[1724796727379,0.04186356,2463.9,2462.1,2.05426783]
[1724796727579,0.04186356,2463.8,2462.2,0.52554059]
[1724796727798,0.04186356,2463.6,2462.3,2.06865302]
[1724796728008,0.10150286,2463.7,2462.2,0.82419143]
[1724796728009,9.8438,2463.3,2462.2,0.52554059]
[1724796728211,0.04186356,2463.1,2461.9,0.52554059]
[1724796728497,0.04186356,2462.9,2462.0,0.52554059]
[1724796728707,0.04186356,2462.8,2462.0,0.52554059]
[1724796728915,0.10153422,2463.1,2462.0,0.52554059]
[1724796729206,9.9878,2464.5,2462.6,9.2193]
[1724796729414,0.10144479,2464.4,2462.7,3.48899977]
[1724796729697,0.10144479,2464.4,2462.7,3.89569977]
[1724796729698,0.04186356,2464.3,2462.7,3.89569977]
[1724796729904,0.04186356,2464.1,2461.8,0.4067]
[1724796730210,0.05,2465.5,2462.0,0.48899977]
[1724796730211,0.04186356,2463.9,2462.0,0.48899977]
[1724796730412,9.9068,2464.0,2462.1,2.38339125]
[1724796730560,0.10147115,2463.9,2462.2,5.24365987]
[1724796730902,0.10147115,2463.9,2462.3,0.4067]
[1724796731107,0.10147115,2463.9,2461.9,36.07058554]
[1724796731108,0.10147115,2463.9,2462.0,0.4067]
[1724796731404,0.10147115,2463.9,2461.9,36.07058554]
[1724796731405,0.04186356,2463.8,2462.2,0.4067]
[1724796731569,0.04186356,2463.7,2462.2,3.4067]
[1724796731762,0.14336141,2463.7,2462.3,0.48899977]
[1724796731962,9.9068,2464.0,2462.5,0.4067]
[1724796732162,9.9068,2464.0,2462.6,0.48899977]
[1724796732418,0.10147205,2463.9,2462.6,0.48899977]
[1724796732576,0.10147205,2463.9,2462.2,0.38339125]
[1724796732577,0.11887918,2463.8,2461.7,0.91295542]
[1724796732905,1.10229926,2463.9,2461.8,0.4067]
[1724796732906,0.11887918,2463.6,2461.8,0.4067]
[1724796733128,9.9068,2464.0,2462.2,0.4067]
[1724796733265,0.10148259,2463.9,2462.3,2.96435279]
[1724796733462,0.10148259,2463.9,2462.4,0.29643528]
[1724796733783,9.9068,2464.0,2462.6,4.06071]
[1724796733970,9.9068,2464.0,2462.5,0.48899977]
[1724796733971,0.10146629,2463.9,2461.8,4.0619]
[1724796734173,0.11887918,2463.8,2461.9,37.51770626]
[1724796734491,0.11887918,2463.6,2461.9,35.0]
[1724796734684,0.11887918,2463.4,2461.5,4.30964218]
[1724796734888,0.10151127,2463.3,2461.9,0.4067]
[1724796735100,1.08236888,2463.4,2461.6,35.42333252]
[1724796735101,0.11887918,2463.2,2461.6,35.42333252]
[1724796735418,9.7917,2462.8,2461.2,0.1219889]
[1724796735597,0.11887918,2462.5,2461.2,0.1219889]
[1724796735808,9.7917,2462.2,2461.2,0.1219889]
[1724796735984,0.55,2463.1,2461.2,0.1219889]
[1724796735985,9.7458,2461.9,2461.2,0.1219889]
[1724796736184,9.7458,2461.6,2459.8,0.84212062]
[1724796736391,3.2254,2461.4,2458.7,11.96205123]
[1724796736628,4.06044,2462.8,2458.7,11.96205123]
[1724796736629,3.2254,2460.9,2458.7,0.54533739]
[1724796736916,0.05,2461.6,2458.7,0.1219889]
[1724796736917,3.2254,2460.5,2458.7,0.1219889]
[1724796737082,3.2254,2460.2,2458.7,0.1219889]
[1724796737283,0.11887918,2460.0,2458.7,0.1219889]
[1724796737473,0.11887918,2459.7,2458.7,0.1219889]
[1724796737674,0.1016815,2459.6,2456.7,0.4197292]
[1724796737937,0.05,2459.3,2456.7,0.4197292]
[1724796738212,0.05,2459.3,2456.1,0.07040835]
[1724796738213,0.05,2458.6,2456.1,0.38277473]
[1724796738414,0.05,2457.9,2454.1,4.07471]
[1724796738634,0.11887918,2457.6,2454.3,2.0565686]
[1724796738776,0.05,2458.2,2454.0,0.1116778]
[1724796738777,0.11887918,2456.9,2454.0,0.1116778]
[1724796738974,9.9739,2457.1,2454.0,0.5183778]
[1724796738975,0.11887918,2456.5,2454.0,0.5183778]
[1724796739241,9.9239,2456.0,2453.6,0.42468941]
[1724796739516,2.67177918,2455.7,2453.3,2.38870101]
[1724796739723,0.11887918,2455.4,2453.3,2.38870101]
[1724796739926,2.5529,2454.9,2452.6,2.04904581]
[1724796740133,0.26717792,2455.4,2451.5,0.1230127]
[1724796740134,2.5529,2454.4,2451.6,2.09808319]
[1724796740278,0.05,2453.9,2451.5,0.1230127]
[1724796740627,9.9239,2453.6,2451.5,0.1230127]
[1724796740778,0.11887918,2453.8,2451.5,0.1230127]
[1724796740779,0.11887918,2453.2,2451.5,0.1230127]
[1724796740976,0.11887918,2453.0,2451.5,0.1230127]
[1724796741201,0.10197904,2453.1,2451.6,0.67284494]
[1724796741484,9.9239,2453.3,2451.6,0.67284494]
[1724796741485,0.11887918,2452.9,2451.7,2.04033406]
[1724796741786,9.9239,2453.3,2451.7,2.04033406]
[1724796741787,9.9239,2453.3,2451.7,0.30309481]
[1724796741974,0.11887918,2455.3,2453.8,4.07528]
[1724796742176,0.4245958,2457.0,2454.0,2.0698488]
[1724796742375,0.14934057,2456.9,2454.6,2.01341268]
[1724796742627,0.04755168,2456.8,2454.7,0.60875227]
[1724796742786,0.04755168,2457.3,2455.4,4.07263]
[1724796743115,0.04755168,2457.3,2455.5,3.9567]
[1724796743116,0.10176804,2457.3,2455.5,3.9567]
[1724796743333,0.10174634,2458.1,2455.8,2.4067]
[1724796743618,0.10174634,2458.1,2455.6,0.43913823]
[1724796743619,0.10174634,2458.1,2456.4,4.07096]
[1724796743926,9.9239,2459.3,2457.8,4.06862]
[1724796744222,0.04755168,2460.1,2457.9,3.956862]
[1724796744379,0.04755168,2460.1,2458.2,2.05190963]
[1724796744581,9.9239,2460.2,2458.4,6.08609037]
[1724796744925,0.04755168,2461.1,2458.5,4.39395458]
[1724796745229,0.04755168,2461.1,2459.2,4.06621]
[1724796745404,0.04755168,2461.0,2459.3,3.0]
[1724796745715,0.04755168,2460.8,2459.3,0.55]
[1724796746009,0.04755168,2460.6,2458.8,3.0]
[1724796746224,0.04755168,2460.6,2458.4,3.0]
[1724796746225,0.04755168,2460.4,2458.4,3.0]
[1724796746372,0.04755168,2460.2,2458.5,0.85]
[1724796746579,0.04755168,2460.9,2458.6,35.0]
[1724796746903,0.04755168,2460.9,2459.2,4.0663]
[1724796746904,0.10163904,2460.9,2459.2,4.0663]
[1724796747107,0.10163904,2460.9,2459.3,0.40663]
[1724796747278,0.10163904,2460.9,2458.9,2.3250522]
[1724796747279,0.10163904,2460.9,2459.4,0.55]
[1724796747499,0.10163904,2460.9,2459.4,35.55]
[1724796747500,0.04755168,2460.8,2459.4,35.55]
[1724796747775,9.9239,2461.2,2457.7,2.06548882]
[1724796747776,0.04755168,2460.6,2457.7,2.06548882]
[1724796748027,0.50117661,2461.0,2457.1,0.4067]
[1724796748028,0.04755168,2460.3,2457.8,0.94968]
[1724796748180,0.04755168,2460.3,2456.7,9.0901]
[1724796748181,0.04755168,2460.1,2456.7,9.0901]
[1724796748378,0.04755168,2459.9,2457.5,2.0]
[1724796748605,0.04755168,2459.7,2456.9,2.01011452]
[1724796748818,9.9239,2460.4,2456.9,2.01011452]
[1724796748819,0.04755168,2459.5,2457.2,2.0]
[1724796749025,0.04755168,2460.2,2457.3,2.4686566]
[1724796749225,0.04755168,2460.2,2458.0,0.4067]
[1724796749226,0.04755168,2460.0,2458.0,0.4067]
[1724796749392,0.10167759,2459.9,2458.0,0.4067]
[1724796749718,0.10167759,2459.9,2458.3,0.4067]
[1724796749928,0.10167759,2459.9,2458.3,3.4067]
[1724796750084,0.04755168,2459.8,2457.6,0.3]
[1724796750278,0.04755168,2459.6,2457.7,2.06548882]
[1724796750479,0.04755168,2459.4,2457.7,3.0]
[1724796750718,0.04755168,2459.3,2457.7,0.4067]
[1724796750926,0.10167739,2459.3,2457.8,0.4067]
[1724796751136,0.99239,2460.3,2457.4,0.53250522]
[1724796751137,0.04755168,2460.1,2457.4,0.53250522]
[1724796751285,0.04755168,2460.1,2456.6,2.03673912]
[1724796751286,9.1057,2459.8,2456.6,2.03673912]
[1724796751488,0.04755168,2459.4,2455.9,2.02639932]
[1724796751805,0.05,2458.8,2456.1,0.4067]
[1724796752011,0.04755168,2458.5,2455.4,4.07254]
[1724796752180,0.11887918,2458.3,2455.7,0.4429549]
[1724796752381,9.4021,2458.0,2454.8,1.8115149]
[1724796752578,9.4021,2457.6,2454.4,0.4429549]
[1724796752785,0.10181507,2457.9,2453.9,0.4067]
[1724796752786,9.52097918,2457.2,2453.9,0.4067]
[1724796753022,1.10893742,2457.5,2453.9,0.4067]
[1724796753023,9.7991,2456.8,2453.9,0.4067]
[1724796753205,9.7991,2456.5,2453.9,0.4067]
[1724796753404,0.11887918,2456.2,2453.8,0.40602969]
[1724796753590,0.11887918,2456.2,2452.9,4.07679]
[1724796753591,0.11887918,2456.0,2453.0,2.09930868]
[1724796753791,0.11887918,2456.0,2452.9,4.07679]
[1724796753792,0.11887918,2455.8,2453.4,0.38019636]
[1724796753991,0.10187071,2455.7,2453.4,0.62346844]
[1724796754223,0.11887918,2455.6,2453.5,0.38019636]
[1724796754421,0.61034582,2456.2,2453.5,0.38019636]
[1724796754422,0.11887918,2455.4,2454.7,0.00841135]
[1724796754723,0.61034582,2456.2,2453.1,0.4067]
[1724796754724,0.11887918,2455.2,2453.1,0.4067]
[1724796754926,0.11887918,2455.0,2453.2,0.38019636]
[1724796755085,0.11887918,2454.8,2453.3,2.05252445]
[1724796755288,0.11887918,2454.6,2453.0,0.4067]
[1724796755485,0.11887918,2454.4,2453.0,0.4067]
[1724796755728,0.11887918,2454.2,2452.0,0.41072859]
[1724796755885,0.94586208,2455.2,2451.6,2.09808319]
[1724796755886,0.11887918,2454.0,2451.6,2.09808319]
[1724796756084,0.0382365,2453.8,2451.6,0.46256193]
[1724796756297,0.10194727,2453.7,2451.5,0.1230127]
[1724796756496,9.6333,2453.6,2451.5,0.1230127]
[1724796756738,9.6333,2453.6,2451.6,2.09808319]
[1724796756739,0.10196568,2453.5,2451.6,2.09808319]
[1724796757237,9.6333,2453.4,2451.5,0.1230127]
[1724796757552,9.6333,2453.2,2450.9,0.22402616]
[1724796757743,9.6333,2453.2,2449.2,0.005]
[1724796757744,9.6333,2453.0,2449.5,0.42284625]
[1724796757947,0.05,2452.6,2449.4,0.3978974]
[1724796758112,0.05,2452.6,2449.2,0.005]
[1724796758113,2.08746773,2452.5,2449.2,0.005]
[1724796758304,1.9854,2452.3,2448.6,4.08392]
[1724796758501,1.9854,2452.3,2448.5,0.73737552]
[1724796758502,2.08745527,2452.2,2448.7,0.74870943]
[1724796758849,0.05,2451.8,2448.0,0.4067]
[1724796759020,0.20874553,2452.1,2448.3,2.04659517]
[1724796759021,9.6333,2451.6,2448.3,2.04659517]
[1724796759222,1.07560034,2451.5,2448.4,0.90356611]
[1724796759417,1.07560034,2451.5,2447.7,4.08531]
[1724796759418,9.6333,2451.4,2447.7,4.08531]
[1724796759619,9.6333,2451.2,2448.0,0.4067]
[1724796759806,9.6333,2451.0,2448.1,0.82570449]
[1724796760038,9.6333,2451.0,2448.9,2.0]
[1724796760245,0.21374677,2452.4,2449.2,2.3250522]
[1724796760246,9.6333,2452.0,2449.2,2.3250522]
[1724796760553,0.10199937,2451.9,2450.9,0.10200625]
[1724796760709,0.10199937,2451.9,2448.8,0.4067]
[1724796760910,1.07552931,2451.9,2449.1,2.06242586]
[1724796761112,0.10199937,2451.9,2449.8,2.0]
[1724796761312,0.10199937,2451.9,2448.8,2.3250522]
[1724796761313,9.6333,2453.2,2451.4,2.08734751]
[1724796761547,9.6333,2456.2,2452.2,2.03956934]
[1724796761708,0.1018854,2456.1,2453.5,2.01026276]
[1724796761923,9.6333,2456.0,2453.3,4.07605]
[1724796762121,9.6333,2456.0,2454.0,2.0698488]
[1724796762427,2.0,2458.7,2454.0,2.0698488]
[1724796762428,9.6333,2457.2,2455.0,2.04304602]
[1724796762624,9.6333,2457.2,2455.4,2.05687367]
[1724796762823,0.10177687,2457.1,2455.4,2.05687367]
[1724796763026,0.10177687,2457.1,2455.5,0.55]
[1724796763557,0.10177687,2457.1,2455.4,0.55]
[1724796763975,0.10177687,2457.1,2455.5,2.02203097]
[1724796764270,0.10176557,2457.1,2455.6,2.87395767]
[1724796764466,0.10176035,2457.9,2455.9,4.0718]
[1724796764763,0.97350604,2457.9,2456.4,2.01409768]
[1724796764917,9.6333,2458.9,2456.4,5.5682201]
[1724796765120,0.10171849,2458.8,2456.5,0.55]
[1724796765320,1.09071064,2458.8,2456.5,3.55]
[1724796765635,1.09071064,2458.8,2454.8,2.06518035]
[1724796765636,10.49410793,2458.7,2454.8,2.06518035]
[1724796765812,10.49410793,2458.7,2454.5,35.0]
[1724796765813,0.10178149,2458.6,2455.2,2.0]
[1724796766018,0.10178149,2458.6,2455.7,4.0169531]
[1724796766218,0.10178149,2458.6,2455.8,0.40169531]
[1724796766219,1.21797644,2458.6,2455.8,0.40169531]
[1724796766424,1.21797644,2458.6,2455.7,0.62515621]
[1724796766632,1.21797644,2458.6,2455.8,35.0]
[1724796766837,9.002,2458.4,2455.2,0.005]
[1724796767054,0.10178566,2458.3,2455.3,2.07041165]
[1724796767254,9.002,2458.1,2455.2,0.005]
[1724796767441,0.10180029,2458.0,2455.5,2.02203097]
[1724796767641,0.10180029,2458.0,2455.2,0.005]
[1724796767867,9.002,2457.9,2455.2,0.005]
[1724796768017,1.01218393,2457.8,2455.2,3.54617]
[1724796768371,9.002,2457.6,2455.2,0.005]
[1724796768550,0.53416584,2457.7,2453.2,41.884541]
[1724796768551,9.002,2457.3,2453.2,39.884541]
[1724796768758,9.80558627,2457.2,2453.4,0.4067]
[1724796768919,9.80558627,2457.2,2452.8,2.3250522]
[1724796768920,0.05,2455.5,2451.0,2.07111527]
[1724796769120,0.05,2456.1,2450.9,35.0]
[1724796769121,1.326784,2455.4,2451.2,2.0]
[1724796769421,0.10191679,2455.3,2451.8,11.4769]
[1724796769746,9.002,2455.1,2452.5,2.0]
[1724796770067,0.10186879,2455.0,2452.7,2.06471156]
[1724796770282,0.10186879,2455.0,2452.8,3.01102485]
[1724796770568,9.002,2455.1,2453.2,2.03202155]
[1724796770569,0.10187919,2454.9,2453.2,2.03202155]
[1724796770722,9.002,2455.1,2453.3,1.13321416]
[1724796770923,0.10186098,2455.0,2453.3,1.13321416]
[1724796771159,9.002,2455.9,2453.3,0.522374]
[1724796771457,9.002,2455.9,2452.8,2.01166647]
[1724796771458,0.07049358,2455.7,2452.8,2.01166647]
[1724796771657,0.07049358,2455.5,2453.2,6.10820155]
[1724796771868,0.9002,2455.8,2452.1,2.05281405]
[1724796771869,9.07249358,2455.3,2452.1,2.05281405]
[1724796772040,0.07049358,2455.1,2452.2,0.60677496]
[1724796772220,0.07049358,2454.9,2452.5,2.0]
[1724796772415,0.10187802,2454.8,2452.7,2.06471156]
[1724796772648,0.10187582,2454.7,2452.9,2.01564959]
[1724796772859,0.10187812,2455.2,2452.8,6.29557134]
[1724796773059,1.01226593,2455.2,2453.1,2.09378365]
[1724796773248,1.01226593,2455.2,2452.9,0.62955713]
[1724796773648,1.01226593,2455.2,2453.2,2.0]
[1724796773874,1.01226593,2455.2,2453.0,0.94224562]
[1724796774020,1.00142659,2455.1,2452.2,0.53554562]
[1724796774221,9.2116,2454.9,2452.3,35.0]
[1724796774452,0.10192585,2454.8,2452.3,35.0]
[1724796774625,0.10191218,2454.7,2452.5,2.02608299]
[1724796774829,0.10191218,2454.7,2452.5,0.4067]
[1724796775249,0.10191218,2454.7,2451.9,2.03378154]
[1724796775447,0.10191218,2454.7,2451.6,2.88693882]
[1724796775448,0.10191218,2454.7,2452.1,0.53554562]
[1724796775649,0.10191218,2454.7,2451.6,0.3513932]
[1724796775650,9.4665,2454.6,2451.1,2.58349264]
[1724796775849,9.8218,2454.4,2452.2,0.4067]
[1724796776072,0.10192213,2454.3,2452.3,0.53554562]
[1724796776274,0.10192213,2454.3,2452.1,35.0]
[1724796776481,0.10192213,2454.3,2452.4,4.07763]
[1724796776778,0.10192213,2454.3,2452.4,2.04534657]
[1724796776975,0.10192213,2454.3,2452.1,35.0]
[1724796777141,0.10192213,2454.3,2452.2,2.57511496]
[1724796777473,9.8218,2454.4,2452.4,4.07759]
[1724796777626,10.80398,2454.4,2452.6,6.12634581]
[1724796777826,0.10188352,2454.3,2452.6,0.53554562]
[1724796778067,0.10188352,2454.3,2452.7,0.55]
[1724796778068,0.10189398,2454.2,2452.7,0.55]
[1724796778270,0.10189398,2454.2,2452.7,3.96547654]
[1724796778271,0.10187725,2454.2,2452.7,3.96547654]
[1724796778582,0.10187725,2454.2,2452.6,0.53554562]
[1724796778740,0.10187725,2454.2,2451.9,2.03378154]
[1724796778939,9.2822,2454.1,2451.4,0.4067]
[1724796779162,9.2822,2454.1,2451.9,2.0]
[1724796779163,0.10195284,2454.0,2451.9,2.0]
[1724796779359,0.10195284,2454.0,2452.5,4.07746]
[1724796779675,0.10188577,2454.0,2452.1,6.07813]
[1724796779982,0.10188577,2454.0,2452.3,0.4067]
[1724796780144,1.04029435,2454.0,2452.3,0.4067]
[1724796780323,1.04029435,2454.0,2452.2,35.0]
[1724796780527,1.04029435,2454.0,2451.3,2.03890582]
[1724796780766,1.04029435,2454.0,2450.7,6.08886388]
[1724796780767,9.2822,2453.9,2450.7,6.08886388]
[1724796781087,9.6672,2453.7,2450.9,2.05956174]
[1724796781391,9.76918842,2453.6,2451.0,2.07111527]
[1724796781530,9.76918842,2453.6,2450.4,0.52874645]
[1724796781876,10.76799261,2453.5,2450.0,0.4067]
[1724796782030,9.6672,2453.3,2450.0,0.93544645]
[1724796782229,1.0926478,2453.5,2450.0,0.93544645]
[1724796782230,9.6672,2453.1,2450.0,0.4067]
[1724796782455,9.6672,2452.8,2450.0,0.4067]
[1724796782760,0.93840858,2453.2,2449.5,2.96964898]
[1724796782761,9.6672,2452.5,2449.5,2.96964898]
[1724796782872,9.6672,2452.5,2448.2,9.2731]
[1724796782873,0.05,2452.1,2448.5,35.4067]
[1724796783080,0.05,2452.1,2448.6,3.54279317]
[1724796783081,0.04336849,2451.8,2448.6,3.54279317]
[1724796783297,9.76928632,2451.7,2448.4,0.0212317]
[1724796783444,0.04336849,2451.4,2448.4,0.0212317]
[1724796783651,9.71056849,2451.1,2448.2,0.52874645]
[1724796783950,0.10211335,2451.3,2448.2,0.52874645]
[1724796783951,0.04336849,2450.6,2448.2,0.42143291]
[1724796784175,0.04336849,2450.3,2447.7,0.4067]
[1724796784493,9.6672,2450.4,2447.6,2.47961336]
[1724796784494,9.4928,2450.0,2447.6,0.85088026]
[1724796784793,9.53616849,2449.7,2446.0,6.16814629]
[1724796785090,0.04336849,2449.3,2447.2,0.4067]
[1724796785247,0.04336849,2448.9,2447.1,0.42399029]
[1724796785587,0.10214894,2449.2,2447.1,0.42399029]
[1724796785588,0.10218709,2448.8,2447.1,0.42399029]
[1724796785795,0.05,2449.0,2444.8,2.2621751]
[1724796785796,0.04336849,2448.4,2444.8,0.24661546]
[1724796785991,0.04336849,2447.3,2443.3,0.4067]
[1724796786216,4.08,2448.0,2443.3,0.4067]
[1724796786217,0.04336849,2447.1,2443.9,4.0918]
[1724796786510,0.04336849,2446.7,2444.0,0.84451625]
[1724796786662,0.04336849,2446.5,2443.9,2.05179997]
[1724796786862,0.04336849,2446.3,2444.7,2.06037654]
[1724796787064,2.05,2449.0,2444.7,2.06037654]
[1724796787065,9.8212,2447.4,2444.8,0.67778199]
[1724796787290,0.04336849,2447.2,2444.8,0.67778199]
[1724796787498,0.04336849,2447.0,2444.2,0.56848449]
[1724796787692,0.10222105,2446.9,2445.1,2.0]
[1724796787882,0.04336849,2446.8,2445.2,2.02094905]
[1724796788087,0.04336849,2447.0,2445.3,0.69282523]
[1724796788280,0.04336849,2449.5,2445.3,0.49141509]
[1724796788487,0.04336849,2449.5,2445.8,0.4067]
[1724796788488,0.145544,2449.4,2445.8,0.4067]
[1724796788692,0.04336849,2449.3,2445.5,3.0]
[1724796788890,0.04336849,2449.1,2445.6,0.55]
[1724796789198,0.42230065,2450.6,2446.8,2.09168021]
[1724796789503,0.05,2451.3,2446.3,2.0]
[1724796789504,0.04336849,2450.4,2447.4,6.08593]
[1724796789672,4.65830784,2451.9,2448.0,2.0]
[1724796789673,0.04336849,2451.8,2448.0,2.0]
[1724796790016,0.04336849,2451.6,2448.7,2.04879015]
[1724796790271,0.04336849,2451.6,2448.0,0.4067]
[1724796790272,0.04336849,2451.6,2448.5,2.03044858]
[1724796790430,0.04336849,2451.6,2449.0,4.02412204]
[1724796790595,0.04336849,2451.8,2449.8,2.0]
[1724796790798,0.04336849,2451.8,2449.1,3.0]
[1724796791109,0.04336849,2451.6,2449.5,2.01215094]
[1724796791280,0.14536826,2451.6,2449.7,4.02321791]
[1724796791617,0.04336849,2451.5,2449.8,3.55]
[1724796791937,0.04336849,2451.5,2449.5,3.0]
[1724796791938,9.74216849,2451.1,2447.0,4.01293267]
[1724796792227,0.04336849,2450.9,2447.6,37.0]
[1724796792407,0.01778899,2450.7,2448.0,2.0]
[1724796792573,9.6988,2451.1,2449.0,2.0]
[1724796792774,0.10207253,2451.0,2448.9,2.0]
[1724796793028,0.01778899,2450.9,2448.3,4.44609581]
[1724796793175,0.01778899,2450.9,2448.2,9.8263]
[1724796793176,0.10204222,2450.8,2449.0,35.0]
[1724796793375,0.10204222,2450.8,2449.1,5.12141907]
[1724796793577,0.10204222,2450.8,2449.1,3.0]
[1724796793788,0.10204222,2450.8,2449.2,0.55]